fUSD/lending_fUSD_20240117
["ID","MTS","AMOUNT","RATE_DAILY","PERIOD"]
[311877290,1705485039070,-500.0,0.00021917,2]
[311877291,1705485039079,-539.24,0.00021917,2]
[311877292,1705485039088,-347.93350001,0.00021917,2]
[311877293,1705485039096,-761.85,0.00021917,2]
[311877294,1705485039105,-440.96184799,0.00021917,2]
[311877295,1705485039114,-500.0,0.00021917,2]
[311877296,1705485039123,-508.17828854,0.00021917,2]
[311877298,1705485039132,-639.60267008,0.00021917,2]
[311877300,1705485039141,-694.65,0.00021917,2]
[311877302,1705485039151,-500.0,0.00021917,2]
[311877304,1705485039160,-500.0,0.00021917,2]
[311877306,1705485039169,-662.75,0.00021917,2]
[311877308,1705485039178,-500.0,0.00021917,2]
[311877310,1705485039187,-500.0,0.00021917,2]
[311877312,1705485039195,-239.59502197,0.00021917,2]
[311877314,1705485039204,-766.84,0.00021917,2]
[311877316,1705485039214,-796.83,0.00021917,2]
[311877318,1705485039223,-500.0,0.00021917,2]
[311877321,1705485039232,-680.93,0.00021917,2]
[311877323,1705485039241,-597.34,0.00021917,2]
[311877325,1705485039250,-500.0,0.00021917,2]
[311877327,1705485039258,-500.0,0.00021917,2]
[311877329,1705485039267,-500.0,0.00021917,2]
[311877331,1705485039276,-650.9,0.00021917,2]
[311877333,1705485039285,-615.44,0.00021917,2]
[311877336,1705485039294,-500.0,0.00021917,2]
[311877339,1705485039303,-500.0,0.00021917,2]
[311877342,1705485039314,-500.0,0.00021917,2]
[311877344,1705485039323,-500.0,0.00021917,2]
[311877346,1705485039332,-500.0,0.00021917,2]
[311877348,1705485039341,-500.0,0.00021917,2]
[311877350,1705485039350,-693.24,0.00021917,2]
[311877352,1705485039359,-500.0,0.00021917,2]
[311877354,1705485039368,-500.0,0.00021917,2]
[311877356,1705485039378,-500.0,0.00021917,2]
[311877358,1705485039387,-403.69141659,0.00021917,2]
[311877360,1705485039399,-1023.05,0.00021917,2]
[311877362,1705485039409,-500.0,0.00021917,2]
[311877365,1705485039421,-385.46046372,0.00021917,2]
[311877367,1705485039430,-500.13,0.00021917,2]
[311877369,1705485039439,-500.0,0.00021917,2]
[311877371,1705485039450,-500.0,0.00021917,2]
[311877373,1705485039459,-1533.46,0.00021917,2]
[311877375,1705485039469,-500.0,0.00021917,2]
[311877377,1705485039479,-500.0,0.00021917,2]
[311877378,1705485039487,-826.27,0.00021917,2]
[311877381,1705485039497,-500.0,0.00021917,2]
[311877382,1705485039506,-500.0,0.00021917,2]
[311877385,1705485039516,-500.0,0.00021917,2]
[311877387,1705485039525,-500.0,0.00021917,2]
[311877389,1705485039536,-500.0,0.00021917,2]
[311877390,1705485039545,-500.0,0.00021917,2]
[311877393,1705485039555,-774.21,0.00021917,2]
[311877395,1705485039564,-500.0,0.00021917,2]
[311877397,1705485039572,-500.0,0.00021917,2]
[311877399,1705485039581,-500.0,0.00021917,2]
[311877401,1705485039591,-512.48014145,0.00021917,2]
[311877403,1705485039600,-500.0,0.00021917,2]
[311877405,1705485039610,-500.0,0.00021917,2]
[311877407,1705485039619,-500.0,0.00021917,2]
[311877409,1705485039627,-500.0,0.00021917,2]
[311877411,1705485039636,-500.0,0.00021917,2]
[311877413,1705485039645,-500.0,0.00021917,2]
[311877415,1705485039654,-500.0,0.00021917,2]
[311877417,1705485039663,-500.0,0.00021917,2]
[311877419,1705485039673,-500.0,0.00021917,2]
[311877421,1705485039682,-500.0,0.00021917,2]
[311877423,1705485039691,-500.0,0.00021917,2]
[311877425,1705485039699,-738.12,0.00021917,2]
[311877427,1705485039708,-500.0,0.00021917,2]
[311877429,1705485039718,-500.0,0.00021917,2]
[311877430,1705485039727,-500.0,0.00021917,2]
[311877432,1705485039736,-500.0,0.00021917,2]
[311877434,1705485039745,-500.0,0.00021917,2]
[311877436,1705485039755,-500.0,0.00021917,2]
[311877438,1705485039764,-500.0,0.00021917,2]
[311877440,1705485039773,-500.0,0.00021917,2]
[311877442,1705485039783,-500.0,0.00021917,2]
[311877444,1705485039792,-500.0,0.00021917,2]
[311877447,1705485039801,-500.0,0.00021917,2]
[311877449,1705485039811,-781.07,0.00021917,2]
[311877451,1705485039822,-500.0,0.00021917,2]
[311877453,1705485039832,-500.0,0.00021917,2]
[311877454,1705485039843,-500.0,0.00021917,2]
[311877457,1705485039853,-500.0,0.00021917,2]
[311877459,1705485039864,-693.88,0.00021917,2]
[311877461,1705485039875,-500.0,0.00021917,2]
[311877463,1705485039885,-500.0,0.00021917,2]
[311877464,1705485039895,-500.0,0.00021917,2]
[311877468,1705485039905,-718.01,0.00021917,2]
[311877470,1705485039914,-517.48,0.00021917,2]
[311877473,1705485039923,-500.0,0.00021917,2]
[311877476,1705485039932,-500.0,0.00021917,2]
[311877479,1705485039943,-500.0,0.00021917,2]
[311877481,1705485039952,-500.0,0.00021917,2]
[311877483,1705485039960,-500.0,0.00021917,2]
[311877484,1705485039969,-500.0,0.00021917,2]
[311877486,1705485039978,-619.65,0.00021917,2]
[311877489,1705485039988,-500.0,0.00021917,2]
[311877491,1705485039997,-500.0,0.00021917,2]
[311877492,1705485040006,-500.0,0.00021917,2]
[311877495,1705485040015,-548.56,0.00021917,2]
[311877496,1705485040024,-500.0,0.00021917,2]
[311877498,1705485040033,-508.49,0.00021917,2]
[311877500,1705485040042,-1505.3,0.00021917,2]
[311877502,1705485040051,-1290.29,0.00021917,2]
[311877504,1705485040060,-500.0,0.00021917,2]
[311877506,1705485040069,-500.0,0.00021917,2]
[311877508,1705485040079,-500.0,0.00021917,2]
[311877510,1705485040088,-500.0,0.00021917,2]
[311877512,1705485040097,-772.15,0.00021917,2]
[311877514,1705485040106,-500.0,0.00021917,2]
[311877516,1705485040115,-775.82,0.00021917,2]
[311877518,1705485040123,-500.0,0.00021917,2]
[311877520,1705485040132,-1095.93,0.00021917,2]
[311877522,1705485040141,-888.69,0.00021917,2]
[311877524,1705485040150,-500.0,0.00021917,2]
[311877526,1705485040159,-500.0,0.00021917,2]
[311877528,1705485040170,-737.04,0.00021917,2]
[311877530,1705485040179,-500.0,0.00021917,2]
[311877532,1705485040188,-1008.05,0.00021917,2]
[311877534,1705485040197,-500.0,0.00021917,2]
[311877536,1705485040206,-686.15,0.00021917,2]
[311877539,1705485040216,-500.0,0.00021917,2]
[311877540,1705485040226,-500.0,0.00021917,2]
[311877542,1705485040235,-500.0,0.00021917,2]
[311877544,1705485040245,-512.29477281,0.00021917,2]
[311877546,1705485040254,-500.0,0.00021917,2]
[311877548,1705485040263,-500.0,0.00021917,2]
[311877550,1705485040273,-631.01,0.00021917,2]
[311877552,1705485040282,-500.0,0.00021917,2]
[311877555,1705485040292,-960.29,0.00021917,2]
[311877557,1705485040302,-500.0,0.00021917,2]
[311877558,1705485040311,-510.05,0.00021917,2]
[311877560,1705485040320,-1092.09,0.00021917,2]
[311877563,1705485040330,-500.0,0.00021917,2]
[311877565,1705485040339,-894.79,0.00021917,2]
[311877567,1705485040349,-574.09358276,0.00021917,2]
[311877569,1705485040358,-500.0,0.00021917,2]
[311877571,1705485040368,-500.0,0.00021917,2]
[311877573,1705485040377,-500.0,0.00021917,2]
[311877575,1705485040387,-500.0,0.00021917,2]
[311877577,1705485040396,-810.09,0.00021917,2]
[311877579,1705485040405,-500.0,0.00021917,2]
[311877581,1705485040414,-672.74,0.00021917,2]
[311877582,1705485040427,-500.0,0.00021917,2]
[311877584,1705485040436,-500.0,0.00021917,2]
[311877586,1705485040445,-500.0,0.00021917,2]
[311877588,1705485040454,-500.0,0.00021917,2]
[311877590,1705485040463,-500.0,0.00021917,2]
[311877592,1705485040472,-500.0,0.00021917,2]
[311877595,1705485040481,-500.0,0.00021917,2]
[311877597,1705485040490,-1158.42,0.00021917,2]
[311877599,1705485040500,-500.0,0.00021917,2]
[311877619,1705485040684,-1142.75,0.00021917,2]
[311877621,1705485040693,-1138.76,0.00021917,2]
[311877623,1705485040703,-615.09,0.00021917,2]
[311877625,1705485040712,-482.0970545,0.00021917,2]
[311877627,1705485040722,-500.0,0.00021917,2]
[311877629,1705485040731,-500.0,0.00021917,2]
[311877631,1705485040740,-752.2,0.00021917,2]
[311877633,1705485040749,-500.0,0.00021917,2]
[311877635,1705485040758,-500.0,0.00021917,2]
[311877636,1705485040767,-500.0,0.00021917,2]
[311877637,1705485040775,-903.64,0.00021917,2]
[311877638,1705485040795,-605.9,0.00021917,2]
[311877639,1705485040806,-703.23,0.00021917,2]
[311877640,1705485040816,-1663.36,0.00021917,2]
[311877641,1705485040826,-500.0,0.00021917,2]
[311877643,1705485040835,-500.0,0.00021917,2]
[311877645,1705485040845,-500.0,0.00021917,2]
[311877647,1705485040855,-500.0,0.00021917,2]
[311877649,1705485040869,-1035.57,0.00021917,2]
[311877651,1705485040879,-500.0,0.00021917,2]
[311877653,1705485040889,-500.0,0.00021917,2]
[311877655,1705485040899,-500.0,0.00021917,2]
[311877657,1705485040910,-500.0,0.00021917,2]
[311877660,1705485040922,-618.35,0.00021917,2]
[311877662,1705485040932,-916.82,0.00021917,2]
[311877664,1705485040944,-598.04,0.00021917,2]
[311877666,1705485040954,-500.0,0.00021917,2]
[311877668,1705485040964,-500.0,0.00021917,2]
[311877670,1705485040974,-956.53,0.00021917,2]
[311877672,1705485040984,-500.0,0.00021917,2]
[311877674,1705485040994,-500.0,0.00021917,2]
[311877676,1705485041004,-743.57,0.00021917,2]
[311877678,1705485041013,-590.9,0.00021917,2]
[311877680,1705485041023,-1673.75,0.00021917,2]
[311877682,1705485041032,-843.58,0.00021917,2]
[311877684,1705485041042,-500.0,0.00021917,2]
[311877686,1705485041052,-1210.55,0.00021917,2]
[311877688,1705485041062,-500.0,0.00021917,2]
[311877690,1705485041073,-500.0,0.00021917,2]
[311877692,1705485041083,-500.0,0.00021917,2]
[311877695,1705485041093,-500.0,0.00021917,2]
[311877697,1705485041102,-722.93,0.00021917,2]
[311877699,1705485041111,-992.34,0.00021917,2]
[311877701,1705485041121,-909.72,0.00021917,2]
[311877703,1705485041131,-721.1,0.00021917,2]
[311877705,1705485041141,-949.07,0.00021917,2]
[311877707,1705485041150,-247.14296343,0.00021917,2]
[311877709,1705485041161,-500.0,0.00021917,2]
[311877711,1705485041172,-500.0,0.00021917,2]
[311877713,1705485041181,-1806.31,0.00021917,2]
[311877715,1705485041191,-767.84,0.00021917,2]
[311877717,1705485041201,-500.0,0.00021917,2]
[311877719,1705485041210,-612.97,0.00021917,2]
[311877721,1705485041221,-500.0,0.00021917,2]
[311877723,1705485041231,-500.0,0.00021917,2]
[311877725,1705485041241,-500.0,0.00021917,2]
[311877727,1705485041251,-1163.28,0.00021917,2]
[311877729,1705485041261,-851.39,0.00021917,2]
[311877732,1705485041271,-500.0,0.00021917,2]
[311877734,1705485041286,-610.19,0.00021917,2]
[311877736,1705485041295,-500.0,0.00021917,2]
[311877738,1705485041305,-709.29,0.00021917,2]
[311877740,1705485041316,-891.96,0.00021917,2]
[311877743,1705485041327,-663.86,0.00021917,2]
[311877745,1705485041337,-1242.51,0.00021917,2]
[311877747,1705485041347,-500.0,0.00021917,2]
[311877749,1705485041358,-500.0,0.00021917,2]
[311877751,1705485041368,-500.0,0.00021917,2]
[311877753,1705485041379,-500.0,0.00021917,2]
[311877755,1705485041389,-659.17,0.00021917,2]
[311877757,1705485041400,-764.52,0.00021917,2]
[311877760,1705485041410,-500.0,0.00021917,2]
[311877762,1705485041422,-500.0,0.00021917,2]
[311877764,1705485041432,-1110.27,0.00021917,2]
[311877766,1705485041442,-1242.67,0.00021917,2]
[311877768,1705485041453,-500.0,0.00021917,2]
[311877770,1705485041463,-1715.43,0.00021917,2]
[311877772,1705485041473,-500.0,0.00021917,2]
[311877775,1705485041483,-977.04,0.00021917,2]
[311877777,1705485041493,-500.0,0.00021917,2]
[311877779,1705485041503,-500.0,0.00021917,2]
[311877781,1705485041513,-500.0,0.00021917,2]
[311877783,1705485041523,-503.7284679,0.00021917,2]
[311877785,1705485041533,-500.0,0.00021917,2]
[311877787,1705485041543,-500.0,0.00021917,2]
[311877789,1705485041552,-500.0,0.00021917,2]
[311877791,1705485041563,-500.0,0.00021917,2]
[311877793,1705485041573,-709.44,0.00021917,2]
[311877796,1705485041583,-500.0,0.00021917,2]
[311877798,1705485041592,-500.0,0.00021917,2]
[311877800,1705485041602,-500.0,0.00021917,2]
[311877802,1705485041612,-500.0,0.00021917,2]
[311877804,1705485041622,-1146.84,0.00021917,2]
[311877806,1705485041632,-500.0,0.00021917,2]
[311877808,1705485041642,-500.0,0.00021917,2]
[311877810,1705485041651,-500.0,0.00021917,2]
[311877812,1705485041661,-500.0,0.00021917,2]
[311877814,1705485041672,-588.06,0.00021917,2]
[311877816,1705485041682,-503.32808355,0.00021917,2]
[311877818,1705485041692,-1255.7,0.00021917,2]
[311877820,1705485041702,-500.0,0.00021917,2]
[311877822,1705485041712,-500.0,0.00021917,2]
[311877825,1705485041722,-713.34,0.00021917,2]
[311877827,1705485041732,-500.0,0.00021917,2]
[311877829,1705485041742,-561.89,0.00021917,2]
[311877831,1705485041752,-500.0,0.00021917,2]
[311877833,1705485041761,-500.0,0.00021917,2]
[311877835,1705485041771,-500.0,0.00021917,2]
[311877838,1705485041785,-820.24,0.00021917,2]
[311877840,1705485041795,-500.0,0.00021917,2]
[311877842,1705485041805,-511.12074454,0.00021917,2]
[311877844,1705485041815,-500.0,0.00021917,2]
[311877846,1705485041824,-500.0,0.00021917,2]
[311877848,1705485041834,-372.3807972,0.00021917,2]
[311877850,1705485041843,-927.14,0.00021917,2]
[311877852,1705485041853,-830.02,0.00021917,2]
[311877854,1705485041864,-500.0,0.00021917,2]
[311877857,1705485041878,-500.0,0.00021917,2]
[311877859,1705485041887,-500.0,0.00021917,2]
[311877861,1705485041897,-769.81,0.00021917,2]
[311877863,1705485041907,-500.0,0.00021917,2]
[311877865,1705485041919,-500.0,0.00021917,2]
[311877867,1705485041929,-500.0,0.00021917,2]
[311877869,1705485041938,-500.0,0.00021917,2]
[311877871,1705485041950,-500.0,0.00021917,2]
[311877873,1705485041961,-500.0,0.00021917,2]
[311877875,1705485041971,-549.08,0.00021917,2]
[311877878,1705485041981,-500.0,0.00021917,2]
[311877880,1705485041990,-269.32272632,0.00021917,2]
[311877882,1705485042000,-776.73,0.00021917,2]
[311877884,1705485042010,-661.44,0.00021917,2]
[311877886,1705485042019,-728.08,0.00021917,2]
[311877888,1705485042029,-500.0,0.00021917,2]
[311877890,1705485042040,-963.36,0.00021917,2]
[311877892,1705485042050,-500.0,0.00021917,2]
[311877894,1705485042060,-500.0,0.00021917,2]
[311877897,1705485042071,-530.73644166,0.00021917,2]
[311877899,1705485042080,-710.04,0.00021917,2]
[311877901,1705485042090,-500.0,0.00021917,2]
[311877903,1705485042100,-910.75,0.00021917,2]
[311877905,1705485042110,-537.72,0.00021917,2]
[311877907,1705485042124,-751.57,0.00021917,2]
[311877909,1705485042134,-500.0,0.00021917,2]
[311877911,1705485042144,-500.0,0.00021917,2]
[311877914,1705485042154,-951.39,0.00021917,2]
[311877916,1705485042165,-500.0,0.00021917,2]
[311877918,1705485042175,-500.0,0.00021917,2]
[311877920,1705485042185,-500.0,0.00021917,2]
[311877922,1705485042195,-500.0,0.00021917,2]
[311877924,1705485042205,-500.0,0.00021917,2]
[311877926,1705485042215,-1189.5,0.00021917,2]
[311877928,1705485042225,-929.44,0.00021917,2]
[311877930,1705485042235,-624.41,0.00021917,2]
[311877933,1705485042245,-795.61,0.00021917,2]
[311877937,1705485042255,-733.42,0.00021917,2]
[311877940,1705485042265,-500.0,0.00021917,2]
[311877943,1705485042274,-500.0,0.00021917,2]
[311877946,1705485042284,-500.0,0.00021917,2]
[311877949,1705485042294,-500.0,0.00021917,2]
[311877951,1705485042303,-562.04,0.00021917,2]
[311877953,1705485042314,-558.18,0.00021917,2]
[311877955,1705485042324,-1132.7,0.00021917,2]
[311877956,1705485042334,-500.0,0.00021917,2]
[311877957,1705485042344,-500.0,0.00021917,2]
[311877958,1705485042354,-613.30564821,0.00021917,2]
[311877959,1705485042364,-500.0,0.00021917,2]
[311877960,1705485042373,-500.0,0.00021917,2]
[311877961,1705485042383,-317.50692969,0.00021917,2]
[311877963,1705485042393,-500.0,0.00021917,2]
[311877965,1705485042402,-1237.62,0.00021917,2]
[311877967,1705485042411,-500.0,0.00021917,2]
[311877969,1705485042422,-990.27,0.00021917,2]
[311877971,1705485042432,-500.0,0.00021917,2]
[311877973,1705485042441,-500.0,0.00021917,2]
[311877975,1705485042451,-950.79,0.00021917,2]
[311877977,1705485042461,-538.59,0.00021917,2]
[311877979,1705485042470,-500.0,0.00021917,2]
[311877981,1705485042480,-500.0,0.00021917,2]
[311877983,1705485042490,-528.69290238,0.00021917,2]
[311877986,1705485042499,-500.0,0.00021917,2]
[311877988,1705485042509,-1013.92,0.00021917,2]
[311877990,1705485042518,-500.0,0.00021917,2]
[311877992,1705485042528,-966.43,0.00021917,2]
[311877994,1705485042537,-869.31,0.00021917,2]
[311877996,1705485042547,-500.0,0.00021917,2]
[311877998,1705485042557,-783.21,0.00021917,2]
[311878000,1705485042566,-752.12,0.00021917,2]
[311878002,1705485042576,-500.0,0.00021917,2]
[311878004,1705485042586,-500.0,0.00021917,2]
[311878006,1705485042595,-356.1760543,0.00021917,2]
[311878008,1705485042604,-960.3,0.00021917,2]
[311878010,1705485042614,-500.0,0.00021917,2]
[311878012,1705485042623,-960.3,0.00021917,2]
[311878014,1705485042633,-960.3,0.00021917,2]
[311878016,1705485042642,-960.3,0.00021917,2]
[311878018,1705485042652,-500.0,0.00021917,2]
[311878020,1705485042662,-1236.14,0.00021917,2]
[311878022,1705485042672,-1214.83,0.00021917,2]
[311878024,1705485042682,-500.0,0.00021917,2]
[311878026,1705485042691,-1371.47,0.00021917,2]
[311878028,1705485042701,-500.0,0.00021917,2]
[311878031,1705485042711,-500.0,0.00021917,2]
[311878033,1705485042720,-1015.22,0.00021917,2]
[311878035,1705485042729,-861.5,0.00021917,2]
[311878037,1705485042739,-554.19,0.00021917,2]
[311878039,1705485042749,-500.0,0.00021917,2]
[311878041,1705485042759,-500.0,0.00021917,2]
[311878043,1705485042768,-506.79069883,0.00021917,2]
[311878045,1705485042778,-285.07,0.00021917,2]
[311878048,1705485042798,-500.0,0.00021917,2]
[311878051,1705485042810,-500.0,0.00021917,2]
[311878053,1705485042821,-500.0,0.00021917,2]
[311878055,1705485042830,-500.0,0.00021917,2]
[311878057,1705485042841,-500.0,0.00021917,2]
[311878059,1705485042851,-692.39,0.00021917,2]
[311878061,1705485042861,-500.0,0.00021917,2]
[311878063,1705485042876,-501.32880581,0.00021917,2]
[311878065,1705485042886,-500.0,0.00021917,2]
[311878067,1705485042896,-794.05,0.00021917,2]
[311878070,1705485042907,-1082.33,0.00021917,2]
[311878072,1705485042917,-945.65,0.00021917,2]
[311878074,1705485042928,-991.05,0.00021917,2]
[311878076,1705485042939,-502.14648705,0.00021917,2]
[311878078,1705485042950,-563.33064526,0.00021917,2]
[311878080,1705485042960,-500.0,0.00021917,2]
[311878082,1705485042970,-574.11,0.00021917,2]
[311878084,1705485042981,-500.0,0.00021917,2]
[311878086,1705485042991,-997.38,0.00021917,2]
[311878089,1705485043001,-500.0,0.00021917,2]
[311878091,1705485043011,-561.99044627,0.00021917,2]
[311878093,1705485043021,-650.48,0.00021917,2]
[311878095,1705485043031,-772.46,0.00021917,2]
[311878097,1705485043041,-500.0,0.00021917,2]
[311878099,1705485043051,-2105.64,0.00021917,2]
[311878101,1705485043061,-500.0,0.00021917,2]
[311878103,1705485043071,-915.69,0.00021917,2]
[311878105,1705485043080,-983.13,0.00021917,2]
[311878160,1705485043560,-500.0,0.00021917,2]
[311878163,1705485043581,-500.0,0.00021917,2]
[311878165,1705485043590,-500.0,0.00021917,2]
[311878167,1705485043600,-500.0,0.00021917,2]
[311878169,1705485043609,-500.0,0.00021917,2]
[311878171,1705485043618,-1642.74,0.00021917,2]
[311878173,1705485043627,-500.0,0.00021917,2]
[311878175,1705485043637,-500.0,0.00021917,2]
[311878177,1705485043646,-500.0,0.00021917,2]
[311878179,1705485043656,-500.0,0.00021917,2]
[311878181,1705485043666,-1050.89,0.00021917,2]
[311878183,1705485043676,-656.21,0.00021917,2]
[311878185,1705485043685,-500.0,0.00021917,2]
[311878188,1705485043695,-1026.74,0.00021917,2]
[311878190,1705485043705,-500.0,0.00021917,2]
[311878192,1705485043716,-2106.28,0.00021917,2]
[311878194,1705485043726,-500.0,0.00021917,2]
[311878196,1705485043736,-1066.4,0.00021917,2]
[311878197,1705485043745,-711.62,0.00021917,2]
[311878198,1705485043754,-500.0,0.00021917,2]
[311878199,1705485043764,-1277.56,0.00021917,2]
[311878200,1705485043773,-1390.89,0.00021917,2]
[311878201,1705485043782,-959.48,0.00021917,2]
[311878202,1705485043792,-500.0,0.00021917,2]
[311878203,1705485043801,-901.59,0.00021917,2]
[311878205,1705485043810,-1046.89,0.00021917,2]
[311878207,1705485043819,-674.4,0.00021917,2]
[311878209,1705485043829,-500.0,0.00021917,2]
[311878211,1705485043838,-500.0,0.00021917,2]
[311878213,1705485043847,-500.0,0.00021917,2]
[311878215,1705485043857,-500.0,0.00021917,2]
[311878218,1705485043871,-500.0,0.00021917,2]
[311878220,1705485043880,-986.06,0.00021917,2]
[311878222,1705485043890,-500.0,0.00021917,2]
[311878224,1705485043899,-173.33868904,0.00021917,2]
[311878226,1705485043909,-779.29,0.00021917,2]
[311878227,1705485043922,-500.0,0.00021917,2]
[311878230,1705485043931,-821.38,0.00021917,2]
[311878232,1705485043942,-842.95,0.00021917,2]
[311878234,1705485043951,-235.57496122,0.00021917,2]
[311878236,1705485043960,-500.0,0.00021917,2]
[311878238,1705485043970,-615.08,0.00021917,2]
[311878240,1705485043980,-536.83,0.00021917,2]
[311878242,1705485043991,-500.0,0.00021917,2]
[311878243,1705485044001,-500.0,0.00021917,2]
[311878245,1705485044011,-1188.22,0.00021917,2]
[311878246,1705485044021,-500.0,0.00021917,2]
[311878248,1705485044031,-804.3,0.00021917,2]
[311878250,1705485044040,-521.47,0.00021917,2]
[311878252,1705485044050,-663.39,0.00021917,2]
[311878254,1705485044059,-500.0,0.00021917,2]
[311878256,1705485044068,-500.0,0.00021917,2]
[311878258,1705485044077,-500.0,0.00021917,2]
[311878260,1705485044087,-2361.07,0.00021917,2]
[311878262,1705485044097,-500.0,0.00021917,2]
[311878264,1705485044106,-500.0,0.00021917,2]
[311878265,1705485044115,-500.0,0.00021917,2]
[311878268,1705485044132,-740.39,0.00021917,2]
[311878269,1705485044142,-513.74791901,0.00021917,2]
[311878271,1705485044151,-557.45,0.00021917,2]
[311878273,1705485044160,-500.0,0.00021917,2]
[311878275,1705485044169,-500.0,0.00021917,2]
[311878277,1705485044179,-500.0,0.00021917,2]
[311878279,1705485044189,-1033.53,0.00021917,2]
[311878281,1705485044199,-289.11740338,0.00021917,2]
[311878283,1705485044208,-500.0,0.00021917,2]
[311878285,1705485044217,-500.0,0.00021917,2]
[311878287,1705485044226,-500.0,0.00021917,2]
[311878289,1705485044236,-1889.11,0.00021917,2]
[311878291,1705485044246,-500.0,0.00021917,2]
[311878293,1705485044255,-500.0,0.00021917,2]
[311878295,1705485044264,-1213.5,0.00021917,2]
[311878297,1705485044273,-1244.78,0.00021917,2]
[311878299,1705485044282,-500.0,0.00021917,2]
[311878301,1705485044292,-2442.04,0.00021917,2]
[311878303,1705485044303,-839.03,0.00021917,2]
[311878305,1705485044312,-500.0,0.00021917,2]
[311878307,1705485044322,-500.0,0.00021917,2]
[311878309,1705485044332,-1199.04,0.00021917,2]
[311878311,1705485044341,-500.0,0.00021917,2]
[311878313,1705485044351,-500.0,0.00021917,2]
[311878315,1705485044359,-500.0,0.00021917,2]
[311878317,1705485044369,-522.3761109,0.00021917,2]
[311878319,1705485044378,-500.0,0.00021917,2]
[311878321,1705485044387,-979.59,0.00021917,2]
[311878323,1705485044397,-500.0,0.00021917,2]
[311878325,1705485044407,-500.0,0.00021917,2]
[311878327,1705485044416,-541.00915227,0.00021917,2]
[311878329,1705485044426,-500.0,0.00021917,2]
[311878331,1705485044436,-500.0,0.00021917,2]
[311878333,1705485044445,-988.42,0.00021917,2]
[311878335,1705485044454,-967.38,0.00021917,2]
[311878336,1705485044463,-1376.21,0.00021917,2]
[311878338,1705485044472,-500.0,0.00021917,2]
[311878340,1705485044482,-1375.09,0.00021917,2]
[311878342,1705485044491,-500.0,0.00021917,2]
[311878345,1705485044501,-928.04,0.00021917,2]
[311878347,1705485044511,-1620.6,0.00021917,2]
[311878348,1705485044520,-500.0,0.00021917,2]
[311878350,1705485044530,-515.10009924,0.00021917,2]
[311878352,1705485044539,-500.0,0.00021917,2]
[311878354,1705485044549,-500.0,0.00021917,2]
[311878356,1705485044558,-500.0,0.00021917,2]
[311878358,1705485044568,-500.0,0.00021917,2]
[311878360,1705485044577,-500.0,0.00021917,2]
[311878362,1705485044586,-619.58,0.00021917,2]
[311878364,1705485044596,-1371.15,0.00021917,2]
[311878366,1705485044605,-882.09,0.00021917,2]
[311878368,1705485044614,-500.0,0.00021917,2]